Cogmind - Beta 16.1 @@@ ROGUE MODE // 2026.02.17 @ 01:38:54 Player: +Jones Result: Destroyed by G-73 Enforcer with Phase Gun Performance ------------- Evolutions (6) 3000 Regions Visited (26) 5200 Robots Destroyed (311) 1555 Value Destroyed (13921) 13921 Prototype IDs (17) 340 Alien Tech Used (0) 0 Bonus (8951) 8951 TOTAL SCORE: 32967 Bonus ------- Triggered High Security 500 High Alert Combat Kills 2906 Follower Combat Kills 3670 Entered Garrisons 600 Met Data Miner 300 Acquired ECA 300 Built Enhanced Grunts 300 A7 Reached Mainframe 300 Met R17 at Cetus 500 Friendly Fire -425 Cogmind --------- Core Integrity 0/1150 Matter 131/300 Energy 100/100 System Corruption 0% Temperature Cool (12) Movement Core (1350) Ox26 Location -4/Factory Parts ------- > --- POWER (2) -------- (None) > --- PROPULSION (6) --- (None) > --- UTILITY (5) ------ Huge Storage Unit > --- WEAPON (6) ------- (None) > --- INVENTORY (25) --- Matter Compressor (250) Matter Compressor (250) Advanced Terrain Scanner Advanced Transmission Jammer Centrium Medium Armor Plating Centrium Medium Armor Plating Centrium Medium Armor Plating Improved Remote Force Field Improved System Restoration Module Long-range Tractor Beam Heavy Plasma Cannon Gamma Bomb Array 1B-0RG's Assimilator Improved Plasma Cutter Great Axe Peak State ------------ > --- POWER ------------ Antimatter Reactor Particle Reactor > --- PROPULSION ------- Centrium Heavy Treads Armored Huge Wheel Armored Huge Wheel > --- UTILITY ---------- Huge Storage Unit Advanced Signal Interpreter Centrium Medium Armor Plating Improved Hacking Suite Corruption Screen > --- WEAPON ----------- KE Penetrator KE Penetrator Railgun Railgun Advanced KE Penetrator Advanced KE Penetrator > --- INVENTORY -------- Armored Medium Treads Armored Medium Treads Centrium Heavy Treads Advanced Cooling System Matter Compressor Matter Compressor Long-range Sensor Array Advanced Terrain Scanner Advanced Transmission Jammer Centrium Medium Armor Plating Centrium Medium Armor Plating Improved Remote Force Field Improved System Restoration Module Long-range Tractor Beam Heavy Plasma Cannon Gamma Bomb Array Long-range Missile Launcher 1B-0RG's Assimilator Improved Plasma Cutter Great Axe [Rating: 134] Favorites ----------- Power Heavy Deuterium Engine Engine Heavy Deuterium Engine Power Core Neutrino Core Reactor Particle Reactor Propulsion Armored Huge Wheel Treads Light Treads Wheel Armored Huge Wheel Utility Huge Storage Unit Device Advanced Sensor Array Storage Huge Storage Unit Processor Advanced Signal Interpreter Hackware Hacking Suite Protection Improved Medium Armor Plating Weapon Heavy Machine Gun Energy Gun Heavy EM Pulse Gun Energy Cannon Heavy Plasma Cannon Ballistic Gun Heavy Machine Gun Ballistic Cannon Assault Cannon Launcher Proton Missile Launcher Special Weapon Welding Torch Impact Weapon Powered Hammer Slashing Weapon Axe Build | -11 -10 -10 -8 -8 -8 -7 -7 -7 -7 -7 -7 -6 -6 -6 -6 -6 -5 -5 -5 -5 -5 -5 -5 -5 -5 -4 ------- Run | Yrd Mat Sub Mat Gar Mat Fac Gar Fac Low Low Zio Pro Fac Low Low Dat Pro Fac Was Fac Ext Cet Arc Hub Gar Fac Slots Evolved 12 | . . . 4 . . 2 . . . . . . 2 . . . . 2 . . . . . . . 2 Power 1 | . . . . . . . . . . . . . . . . . . 1 . . . . . . . . Propulsion 4 | . . . 3 . . 1 . . . . . . . . . . . . . . . . . . . . Utility 3 | . . . 1 . . 1 . . . . . . . . . . . 1 . . . . . . . . Weapon 4 | . . . . . . . . . . . . . 2 . . . . . . . . . . . . 2 Parts Attached 180 | 10 12 4 33 19 16 . 11 3 5 . 3 1 15 3 6 . 1 2 1 1 4 7 4 2 3 14 Power 22 | 2 . . 4 3 2 . 1 1 . . . . . . 1 . . 1 . . 1 1 1 . 1 3 Engine 13 | 2 . . 3 3 2 . 1 1 . . . . . . 1 . . . . . . . . . . . Core 4 | . . . 1 . . . . . . . . . . . . . . 1 . . 1 . . . . 1 Reactor 5 | . . . . . . . . . . . . . . . . . . . . . . 1 1 . 1 2 Propulsion 57 | 2 4 1 15 11 8 . 5 2 . . . . . . 2 . 1 . 1 . . 2 . . . 3 Treads 49 | 2 4 1 15 9 8 . 2 2 . . . . . . 1 . . . 1 . . 1 . . . 3 Leg . | . . . . . . . . . . . . . . . . . . . . . . . . . . . Wheel 8 | . . . . 2 . . 3 . . . . . . . 1 . 1 . . . . 1 . . . . Hover . | . . . . . . . . . . . . . . . . . . . . . . . . . . . Flight . | . . . . . . . . . . . . . . . . . . . . . . . . . . . Utility 44 | 3 2 2 6 3 4 . 1 . 4 . 1 1 6 2 . . . 1 . 1 . 2 1 2 . 2 Device 13 | 2 . 1 2 . 1 . . . 2 . . 1 2 . . . . . . . . . . . . 2 Storage 6 | 1 1 . 1 . 1 . . . . . 1 . . . . . . . . 1 . . . . . . Processor 6 | . . . 1 . . . . . 1 . . . 2 1 . . . . . . . 1 . . . . Hackware 8 | . . . . 1 2 . . . . . . . 1 1 . . . 1 . . . . . 2 . . Protection 11 | . 1 1 2 2 . . 1 . 1 . . . 1 . . . . . . . . 1 1 . . . Artifact . | . . . . . . . . . . . . . . . . . . . . . . . . . . . Weapon 57 | 3 6 1 8 2 2 . 4 . 1 . 2 . 9 1 3 . . . . . 3 2 2 . 2 6 Energy Gun 7 | 1 3 1 . . . . . . . . . . . . 1 . . . . . . 1 . . . . Energy Cannon 2 | . . . . . . . . . . . . . 1 . . . . . . . 1 . . . . . Ballistic Gun 26 | 2 . . 2 . . . 2 . . . . . 6 . 2 . . . . . 2 1 2 . 2 5 Ballistic Cannon 7 | . . . 5 . . . 1 . . . . . 1 . . . . . . . . . . . . . Launcher 8 | . 2 . . 1 1 . 1 . 1 . . . . 1 . . . . . . . . . . . 1 Special Weapon 1 | . . . . . 1 . . . . . . . . . . . . . . . . . . . . . Impact Weapon 2 | . 1 . . 1 . . . . . . . . . . . . . . . . . . . . . . Slashing Weapon 4 | . . . 1 . . . . . . . 2 . 1 . . . . . . . . . . . . . Piercing Weapon . | . . . . . . . . . . . . . . . . . . . . . . . . . . . Special Melee Weapon . | . . . . . . . . . . . . . . . . . . . . . . . . . . . Unidentified Prototypes 8 | . . . 1 . . . . 1 . . . . 1 . . . . . . . 1 4 . . . . Parts Lost 33 | . 1 1 7 4 2 . . . . . . . . . . . . . . . . . . . . 18 Power 8 | . . . 1 1 1 . . . . . . . . . . . . . . . . . . . . 5 Propulsion 11 | . . . 5 2 . . . . . . . . . . . . . . . . . . . . . 4 Utility 5 | . 1 . . 1 . . . . . . . . . . . . . . . . . . . . . 3 Weapon 9 | . . 1 1 . 1 . . . . . . . . . . . . . . . . . . . . 6 Highest Loss Streak 15 | . 1 1 2 4 1 . . . . . . . . . . . . . . . . . . . . 15 To Critical Strikes . | . . . . . . . . . . . . . . . . . . . . . . . . . . . Average Backups 18 | 1 12 12 18 20 19 19 20 19 18 19 21 22 18 18 18 18 18 17 18 18 18 18 19 20 20 19 Power . | . . . . . . . . . . . . . . 1 . . . . . . . . . . . . Propulsion 2 | . 4 4 2 3 4 3 3 2 2 2 2 2 2 2 2 2 2 2 2 2 2 3 3 3 3 2 Utility 8 | . 2 3 8 6 6 7 8 8 7 7 10 11 9 8 8 9 9 8 9 9 9 8 9 10 10 10 Weapon 5 | 1 4 3 5 8 7 7 7 7 7 8 7 7 5 5 5 5 5 5 5 5 5 5 5 5 5 4 Tool/Special . | . . . . . . . . . . . . . . . . . . . . . . . . . . . Unused Backups 31 | . 1 1 6 1 . 1 . . . . . . 2 1 1 . . . 1 1 5 1 . . . 9 Power . | . . . . . . . . . . . . . . . . . . . . . . . . . . . Propulsion 2 | . . 1 1 . . . . . . . . . . . . . . . . . . . . . . . Utility 20 | . . . 2 1 . . . . . . . . 1 1 . . . . 1 1 5 1 . . . 7 Weapon 6 | . 1 . 3 . . 1 . . . . . . 1 . . . . . . . . . . . . . Tool/Special 3 | . . . . . . . . . . . . . . . 1 . . . . . . . . . . 2 Average Slot Usage (%) 86 | . 94 97 98 91 90 99 89 82 81 76 77 76 85 85 85 86 86 82 82 82 81 81 82 82 82 80 Engine 6 | . 14 14 7 6 8 7 7 7 7 7 7 7 6 6 6 6 6 5 5 5 5 . . . . . Treads 19 | . 27 28 44 30 29 46 30 13 15 15 15 15 13 13 13 13 13 11 5 5 5 5 5 5 5 5 Wheel 9 | . . . . 7 7 . 6 15 15 15 15 15 13 13 13 13 13 11 11 11 11 11 11 11 11 9 Device 5 | . 9 3 4 . 5 6 6 7 6 7 6 7 4 5 5 6 5 5 5 5 4 5 5 4 . 4 Storage 7 | . 14 14 9 9 9 7 7 7 7 7 7 7 6 6 6 6 6 5 5 5 5 5 5 5 5 5 Processor 7 | . . . 6 . . . . . 6 7 7 7 9 13 13 13 13 11 11 11 11 16 12 11 11 9 Hackware 2 | . . . . 8 9 7 7 7 . . . . 2 . . . . 4 5 5 5 . . 5 11 5 Protection 2 | . . 9 6 8 2 7 7 6 7 7 1 . 1 . . . . . . . . . 3 . . . Energy Gun 1 | . 23 14 1 . . . . . . . . . . . . . . . . . . . . . . . Ballistic Gun 11 | . 3 . . . 11 7 6 . . . . . 21 24 19 20 21 17 17 17 15 22 23 19 21 28 Ballistic Cannon 2 | . . . 8 14 . . 2 . 1 7 . . . . . . . . . . . . . . . . Impact Weapon 1 | . . 11 1 . . . . 4 5 . 6 7 1 1 . . . . . . 2 . . . . . Slashing Weapon 1 | . . . 5 2 5 7 3 7 4 . 3 . . . . . . . . . . . . 2 1 1 Peak Build Rating 134 | 7 14 20 34 45 48 37 56 57 63 64 60 59 78 77 79 77 78 86 91 91 93 112 121 121 117 134 Average Rating 62 | 5 10 17 31 37 38 36 46 55 59 63 58 58 72 75 76 77 76 80 87 90 91 103 117 115 113 125 On Entrance 64 | . 7 12 20 31 45 34 37 56 57 63 64 58 59 74 75 77 77 77 86 88 91 92 112 121 114 111 Avg Prop Armor Cover (%) 13 | . . . . 11 13 . 19 16 15 13 16 16 13 14 13 13 13 12 12 11 11 10 9 10 11 9 Naked Turns . | . . . . . . . . . . . . . . . . . . . . . . . . . . . Heaviest Build 222 | 14 36 35 102 104 105 98 123 113 119 119 222 222 126 116 120 114 114 119 119 120 127 135 149 149 141 150 Greatest Support 120 | 40 46 46 115 100 100 120 120 56 56 56 56 56 56 56 56 56 56 56 56 56 70 70 80 56 80 107 Greatest Overweight (x) 27 | . 9 . 1 5 3 . 4 2 2 2 3 3 2 2 2 2 2 2 2 2 2 2 2 2 2 27 Average Overweight (x) 1 | . . . . 1 1 . 3 1 1 2 2 3 1 1 1 2 1 2 1 1 1 1 1 2 1 1 Largest Inventory Capacity 35 | 8 15 15 25 25 25 25 25 25 25 25 35 35 35 25 25 25 25 25 25 25 25 25 25 25 25 25 Average Capacity 24 | 7 14 15 23 25 25 25 25 25 25 25 32 35 25 25 25 25 25 25 25 25 25 25 25 25 25 25 Most Carried 30 | 4 15 15 25 25 25 25 25 25 25 25 30 30 30 25 25 25 25 25 25 25 25 25 25 25 25 25 Average Carried 23 | 1 12 14 22 24 24 24 24 24 24 24 27 29 24 24 24 25 25 24 25 24 24 24 24 25 25 24 Final Capacity 35 | 8 15 15 25 25 25 25 25 25 25 25 35 35 25 25 25 25 25 25 25 25 25 25 25 25 25 25 Final Carried 30 | 3 15 15 25 25 25 25 25 25 25 25 29 30 25 25 25 25 25 25 25 25 25 25 25 25 25 19 Class Distribution -------------------- 26% | Scavenger-Mutant 20% | Mutant 15% | Skirmisher 12% | Derelict-Skirmisher 6% | Hauler-Mutant 3% | Scavenger-Executioner Dominant Class ---------------- Mutant | -10/Materials Mutant | -10/Subcaves Scavenger-Mutant | -8/Materials Scavenger-Mutant | -8/Garrison Scavenger-Mutant | -8/Materials Scavenger-Mutant | -7/Factory Scavenger-Mutant | -7/Garrison Scavenger-Mutant | -7/Factory Mutant | -7/Lower Caves Mutant | -7/Lower Caves Hauler-Mutant | -7/Zion Hauler-Mutant | -6/Proximity Caves Skirmisher | -6/Factory Skirmisher | -6/Lower Caves Skirmisher | -6/Lower Caves Derelict-Skirmisher | -6/Data Miner Derelict-Skirmisher | -5/Proximity Caves Derelict-Skirmisher | -5/Factory Scientist-Skirmisher | -5/Waste Derelict-Skirmisher | -5/Factory Derelict-Skirmisher | -5/Extension Commander-Skirmisher | -5/Cetus Commander-Tank | -5/Archives Commander-Skirmisher | -5/Hub_04(d) Scavenger-Tank | -5/Garrison Scavenger-Executioner | -4/Factory Resources | -11 -10 -10 -8 -8 -8 -7 -7 -7 -7 -7 -7 -6 -6 -6 -6 -6 -5 -5 -5 -5 -5 -5 -5 -5 -5 -4 ----------- Run | Yrd Mat Sub Mat Gar Mat Fac Gar Fac Low Low Zio Pro Fac Low Low Dat Pro Fac Was Fac Ext Cet Arc Hub Gar Fac Matter Collected 11744 | 320 243 87 1249 1182 713 . 1205 68 215 98 226 50 1502 515 384 . 116 . 515 57 845 306 244 12 517 1075 Remotely . | . . . . . . . . . . . . . . . . . . . . . . . . . . . Salvage Created 13356 | 192 613 131 1840 1177 748 . 1459 102 467 54 . 27 1500 289 133 . 76 . 1333 71 354 211 292 12 289 1986 Parts 639 | 16 59 5 128 62 32 . 55 6 15 2 . 1 56 16 6 . 1 . 3 7 18 8 20 3 14 106 Haulers Intercepted 8 | . 1 . 5 . 2 . . . . . . . . . . . . . . . . . . . . . Recyclers Shooed 2 | . . . . . . . . . . . . . 1 . . . . . . . 1 . . . . . Parts Field Recycled . | . . . . . . . . . . . . . . . . . . . . . . . . . . . Retrieved Matter . | . . . . . . . . . . . . . . . . . . . . . . . . . . . Parts Self-Destructed 37 | . . 6 . . . . . . 4 1 1 4 . 14 6 . 1 . . . . . . . . . Prevented 12 | . . . . . . . . . 10 . . 2 . . . . . . . . . . . . . . Parts Restored . | . . . . . . . . . . . . . . . . . . . . . . . . . . . Kills | -11 -10 -10 -8 -8 -8 -7 -7 -7 -7 -7 -7 -6 -6 -6 -6 -6 -5 -5 -5 -5 -5 -5 -5 -5 -5 -4 ------- Run | Yrd Mat Sub Mat Gar Mat Fac Gar Fac Low Low Zio Pro Fac Low Low Dat Pro Fac Was Fac Ext Cet Arc Hub Gar Fac Combat Hostiles Destroyed 247 | . 17 3 42 33 11 . 26 3 8 1 . 1 20 14 10 . 3 . 6 3 6 2 2 . 6 30 Melee 28 | . . 1 22 . 3 . 2 . . . . . . . . . . . . . . . . . . . Guns 82 | . 11 . . . 5 . 11 . . . . . 14 6 1 . 2 . . . 1 2 2 . 6 21 Cannons 49 | . . . 13 28 1 . 3 . . 1 . . . . 2 . . . . . 1 . . . . . AOE 76 | . 6 . 7 3 2 . 10 3 5 . . 1 6 8 7 . 1 . 6 3 4 . . . . 4 Classes Destroyed 23 | 2 6 2 3 2 2 . . . 1 . . . . . . . 1 . 1 . . . . . . 3 Worker 12 | . 1 . 5 . 2 . . . . . . . 3 . . . . . . 1 . . . . . . Builder 5 | . 1 . 1 . . . . . . . . . 1 . . . . . . . . . . 1 . 1 Tunneler 9 | 5 2 . 1 . . . . . . . . . 1 . . . . . . . . . . . . . Hauler 8 | . 1 . 5 . 2 . . . . . . . . . . . . . . . . . . . . . Recycler 9 | 1 . . 1 . . . . 1 . . . . 5 . . . . . . . 1 . . . . . Minesweeper 1 | . . . . . . . . . 1 . . . . . . . . . . . . . . . . . Mechanic 3 | . . . . . 2 . . . . . . . 1 . . . . . . . . . . . . . Operator 4 | . . . 1 . . . . . . . . . . . . . . . . . . . 3 . . . Drone 2 | . . . . . . . . . . . . . . . . . 2 . . . . . . . . . Watcher 13 | . 3 . 2 . 4 . . . . . . . . . . . . . . . . 2 . . . 2 Swarmer 94 | . 9 . 17 9 . . 9 3 3 . . 1 11 10 10 . . . . 3 4 . . . 3 2 Saboteur 1 | . . . . . . . . . . . . . . . . . . . . . . . . . . 1 Grunt 73 | . 8 . 14 9 5 . 13 . 4 . . . 4 1 . . . . . . . . . . 2 13 Brawler 11 | . . . . 3 4 . 1 . . . . . . 2 . . . . . . . . . . . 1 Duelist 4 | . . . . . 1 . 1 . 1 . . . . . . . . . . . . . . . . 1 Protector 2 | . . . . . . . . . . . . . . . . . . . . . . . . . . 2 Sentry 33 | . . . 10 9 1 . 2 . . . . . 1 1 . . 1 . . . 2 . 2 . 1 3 Demolisher 1 | . . . . . . . . . . . . . . . . . . . . . . . . . . 1 Hunter 3 | . . . 1 . . . . . . 1 . . . . . . . . . . . . . . . 1 Programmer 12 | . . . . 3 . . . . . . . . 4 . . . . . . . . . . . . 5 Compactor 6 | . . . . . . . . . . . . . . . . . . . 6 . . . . . . . Cetus Guard 2 | . . . . . . . . . . . . . . . . . . . . . . 2 . . . . Subdweller 3 | . . 3 . . . . . . . . . . . . . . . . . . . . . . . . Scientist 1 | . . 1 . . . . . . . . . . . . . . . . . . . . . . . . Decomposer 7 | . . . . . . . . . 3 1 . . . 2 1 . . . . . . . . . . . Best Kill Streak 12 | 1 4 3 6 5 3 . 7 3 7 1 . 1 5 7 4 . 1 . 1 4 4 1 3 1 2 12 Combat Bots Only 11 | . 3 3 5 5 2 . 7 3 7 1 . 1 4 7 4 . 1 . 1 3 4 1 2 . 2 11 Max Kills in Single Turn 4 | 1 2 1 4 2 2 . 3 2 2 1 . 1 3 3 2 . 1 . 1 4 2 1 2 1 1 3 Gunslinging 2 | . . . . . . . 1 . . . . . 1 1 . . . . . . . . . . . 2 Exploded 4 | . 2 . 4 2 1 . 3 2 2 . . 1 3 3 2 . 1 . 1 3 2 . . . . 2 Melee 1 | . . 1 1 . 1 . 1 . . . . . . . . . . . . . . . . . . . Uniques/NPCs Destroyed . | . . . . . . . . . . . . . . . . . . . . . . . . . . . Combat | -11 -10 -10 -8 -8 -8 -7 -7 -7 -7 -7 -7 -6 -6 -6 -6 -6 -5 -5 -5 -5 -5 -5 -5 -5 -5 -4 -------- Run | Yrd Mat Sub Mat Gar Mat Fac Gar Fac Low Low Zio Pro Fac Low Low Dat Pro Fac Was Fac Ext Cet Arc Hub Gar Fac Hostile Shots Fired 1279 | . 52 13 275 169 55 . 133 4 28 6 . . 68 64 9 . 6 . . . 42 9 4 . 20 322 Missed 394 | . 17 4 75 45 20 . 48 1 14 3 . . 25 18 7 . 1 . . . 21 3 2 . 4 86 Hits 885 | . 35 9 200 124 35 . 85 3 14 3 . . 43 46 2 . 5 . . . 21 6 2 . 16 236 Melee 21 | . . . . . 6 . 5 . . . . . . . . . . . . . . . . . . 10 Projectile 864 | . 35 9 200 124 29 . 80 3 14 3 . . 43 46 2 . 5 . . . 21 6 2 . 16 226 AOE 2 | . . . . . . . . . . . . . . . . . . . . . . . . . . 2 Critical Strikes 34 | . . . 8 5 4 . 2 . . . . . . 2 . . 1 . . . . . . . . 12 Damage Taken 14510 | . 420 215 2636 1604 808 . 993 43 225 59 . . 682 729 29 . 118 . 18 . 277 129 95 . 321 5109 Core 2173 | . 75 62 250 109 169 . 83 . 18 . . . 33 48 . . . . . . 52 23 . . 89 1162 Absorbed by Shields 406 | . . . . 73 . . 85 . . . . . . . . . . . . . 155 51 . . 42 . Reduced by Siege Mode 84 | . . . . . . . . . . . . . . . . . . . . . . . . . . 84 Ignored by Resistances 54 | . . . 14 40 . . . . . . . . . . . . . . . . . . . . . . Regen/Repaired (Parts) 862 | . 19 . 18 . . . . . . . 693 . . . . . . . . 21 21 52 10 . 4 24 Core Remaining (%) 67 | 100 . 45 . . 4 . . . . . . 85 . . . . 90 . . . . . . . 83 . Volleys Fired 713 | 20 51 1 74 103 47 . 58 2 8 5 . 6 73 28 56 . 15 3 30 4 20 14 12 1 34 48 Largest 6 | 2 2 2 2 2 2 . 2 1 1 1 . 1 4 4 4 . 4 1 1 2 4 4 4 3 4 6 Hottest 206 | 70 90 90 74 74 74 . 67 39 65 65 . 39 116 103 178 . 118 90 43 120 150 129 138 103 138 206 Shots Fired 1485 | 40 96 2 122 181 89 . 91 2 9 6 . 6 170 52 68 . 33 3 30 5 44 49 48 3 102 234 Gun 946 | 40 90 2 8 . 74 . 66 . . . . . 132 28 21 . 24 . . . 33 49 48 3 102 226 Cannon 424 | . . . 110 171 11 . 15 . 2 6 . . 35 15 38 . 8 3 . 4 6 . . . . . Launcher 115 | . 6 . 4 10 4 . 10 2 7 . . 6 3 9 9 . 1 . 30 1 5 . . . . 8 Special . | . . . . . . . . . . . . . . . . . . . . . . . . . . . Kinetic 1156 | 20 15 . 110 171 85 . 81 . 2 6 . . 132 28 21 . 24 . . . 33 49 48 3 102 226 Thermal 144 | 20 15 . . . . . . . . . . . 35 15 38 . 8 3 . 4 6 . . . . . Explosive 87 | . 6 . 4 . 4 . 10 2 . . . . 3 9 9 . 1 . 30 1 5 . . . . 3 Electromagnetic 98 | . 60 2 8 10 . . . . 7 . . 6 . . . . . . . . . . . . . 5 Robot Hit Streak 27 | 6 12 2 10 19 21 . 27 . 2 4 . 7 13 4 3 . 10 . 16 1 9 17 4 4 5 12 Robot Miss Streak 7 | 2 5 . 3 4 3 . 1 . 1 . . . 4 3 6 . 7 . 1 2 3 1 4 2 3 5 Penetration Max 1 | . . . . . . . 1 . . . . . 1 . . . . . . . . 1 1 . . 1 Secondary Targets 18 | . 3 . . . . . 4 . . . . . 1 2 . . . . . . . . . . . 8 Max Gunslinging Chain 3 | . 1 . . . . . 1 . . . . . 1 1 . . . . . . . . . . . 3 Shots Hit Robots 909 | 28 52 12 129 120 87 . 101 1 12 3 . 3 81 17 9 . 12 . 22 1 23 30 21 3 34 108 Core Hits 542 | 10 30 3 62 49 33 . 58 8 11 2 . 2 48 26 11 . 5 . 12 5 23 17 10 . 15 102 Critical Kills 12 | . . . . . . . . . . . . . . . . . . . . . . 2 4 . 1 5 Critical Parts Destroyed 13 | . . 2 . . 1 . . . . . . . 2 1 . . . . . . . 2 . . . 5 Critical Strikes 50 | 2 1 3 8 2 7 . 2 . . 1 . . 2 1 . . . . . . . 4 4 . 1 12 Burn 2 | 2 . . . . . . . . . . . . . . . . . . . . . . . . . . Destroy 24 | . . . . . 1 . . . . . . . 2 . . . . . . . . 4 4 . 1 12 Blast 8 | . . . 2 2 2 . 1 . . 1 . . . . . . . . . . . . . . . . Corrupt 1 | . 1 . . . . . . . . . . . . . . . . . . . . . . . . . Smash 4 | . . 3 . . . . . . . . . . . 1 . . . . . . . . . . . . Sever 11 | . . . 6 . 4 . 1 . . . . . . . . . . . . . . . . . . . Melee Attacks 302 | . 4 14 104 19 34 1 52 3 16 . 1 . 23 2 3 . . . . . 14 . . 5 6 1 Impact 63 | . 4 14 6 4 4 . . . 6 . . . 19 2 3 . . . . . 1 . . . . . Slashing 239 | . . . 98 15 30 1 52 3 10 . 1 . 4 . . . . . . . 13 . . 5 6 1 Piercing . | . . . . . . . . . . . . . . . . . . . . . . . . . . . Sneak Attacks 38 | . . . 14 . 7 . . 1 4 . . . 8 2 1 . . . . . . . . 1 . . Combat Hostiles 3 | . . . 3 . . . . . . . . . . . . . . . . . . . . . . . Follow-up Attacks 1 | . . . . . . . . . 1 . . . . . . . . . . . . . . . . . Damage Inflicted 37198 | 291 1104 405 4743 3618 3096 . 4223 247 999 170 . 147 3241 1501 1052 . 326 . 3204 253 1053 816 931 146 755 4877 Guns 12014 | 291 695 21 121 . 1143 . 1146 . . . . . 1871 245 34 . 266 . . . 443 816 931 25 755 3211 Cannons 5083 | . . . 1377 2754 185 . 469 . . 170 . . . . 65 . . . . . 63 . . . . . Explosions 11300 | . 409 . 311 282 660 . 771 164 475 . . 147 470 1046 835 . 60 . 3204 253 547 . . . . 1666 Melee 8789 | . . 384 2934 582 1108 . 1831 83 524 . . . 894 210 118 . . . . . . . . 121 . . Ramming 12 | . . . . . . . 6 . . . . . 6 . . . . . . . . . . . . . Kinetic 16006 | 79 86 . 1377 2754 1328 . 1615 . . 170 . . 1871 245 34 . 266 . . . 443 816 931 25 755 3211 Thermal 628 | 212 161 . . 39 . . . . . . . . . . 65 . . . . . 63 . . . . 88 Explosive 9062 | . 370 . 311 . 660 . 771 164 . . . . 470 1046 835 . 60 . 3204 253 547 . . . . 371 Electromagnetic 2701 | . 487 21 121 243 . . . . 475 . . 147 . . . . . . . . . . . . . 1207 Impact 1849 | . . 384 44 . 142 . . . 175 . . . 776 210 118 . . . . . . . . . . . Slashing 6940 | . . . 2890 582 966 . 1831 83 349 . . . 118 . . . . . . . . . . 121 . . Piercing . | . . . . . . . . . . . . . . . . . . . . . . . . . . . Highest Corruption 3 | . 1 1 . 3 3 . . . 1 1 1 . . . . . . . . . . . . . . . Average Corruption 1 | . 1 1 . 2 3 . . . 1 1 1 . . . . . . . . . . . . . . . Corruption Purged . | . . . . . . . . . . . . . . . . . . . . . . . . . . . Corruption Blocked 6 | . . . . . . . . . . . . . 1 . . . . . . . . . . . . 5 Effects 69 | . 4 1 . 13 32 . . . 6 11 2 . . . . . . . . . . . . . . . Message Errors 30 | . 3 . . 7 13 . . . 2 4 1 . . . . . . . . . . . . . . . Matter Fused 13 | . . . . 2 7 . . . 1 3 . . . . . . . . . . . . . . . . Heat Flow Errors 7 | . . 1 . 1 3 . . . 1 1 . . . . . . . . . . . . . . . . Energy Discharges 6 | . . . . . 6 . . . . . . . . . . . . . . . . . . . . . Data Loss (minor) 5 | . . . . 1 . . . . 1 2 1 . . . . . . . . . . . . . . . Data Loss (major) 4 | . 1 . . 2 1 . . . . . . . . . . . . . . . . . . . . . Misfires 2 | . . . . . . . . . 1 1 . . . . . . . . . . . . . . . . Alerts 2 | . . . . . 2 . . . . . . . . . . . . . . . . . . . . . Overload Shots . | . . . . . . . . . . . . . . . . . . . . . . . . . . . Overflow Damage 1964 | . 3 116 231 139 209 . 117 43 175 1 . . 408 259 165 . . . . . 42 . . 56 . . Projectiles 223 | . . . . 139 . . 62 . . 1 . . . . . . . . . . 21 . . . . . Explosions 146 | . 3 . . . 11 . . . . . . . 5 54 52 . . . . . 21 . . . . . Melee 1595 | . . 116 231 . 198 . 55 43 175 . . . 403 205 113 . . . . . . . . 56 . . Knockbacks 49 | . . 1 17 21 1 . 3 . 2 1 . . 3 . . . . . . . . . . . . . Impact 6 | . . 1 . . . . . . 2 . . . 3 . . . . . . . . . . . . . Kinetic 37 | . . . 15 17 1 . 3 . . 1 . . . . . . . . . . . . . . . . Secondary 6 | . . . 2 4 . . . . . . . . . . . . . . . . . . . . . . Self-Inflicted Damage 302 | . 15 . 53 . 164 . . . 8 . . . . . . . . . 20 . 42 . . . . . Shots 11 | . 1 . 2 . 4 . . . 1 . . . . . . . . . 2 . 1 . . . . . Rammed 1 | . . . . . . . . . . . . . 1 . . . . . . . . . . . . . Targets Rammed 2 | . . . . . . . 1 . . . . . 1 . . . . . . . . . . . . . Kicked . | . . . . . . . . . . . . . . . . . . . . . . . . . . . Crushed 1 | . . . . . . . 1 . . . . . . . . . . . . . . . . . . . Highest Temperature 354 | 140 158 100 120 152 107 . 58 . 138 104 . . 136 117 150 . 120 24 . 120 154 271 176 39 219 354 Average Temperature 56 | 51 52 62 21 23 23 . 19 . 41 24 . . 42 39 47 . 50 18 . 54 44 86 71 24 78 145 Received Heat Transfer 3369 | . 111 54 999 445 261 . 241 . 18 . . . 117 108 . . 18 . . . 26 . 9 . 51 911 Siege Activations 5 | . . . . . . . . . . . . . . . . . . . . . . . . . 2 3 Total Turns 98 | . . . . . . . . . . . . . . . . . . . . . . . . . 12 86 Longest Duration 41 | . . . . . . . . . . . . . . . . . . . . . . . . . 6 41 Martial Activations . | . . . . . . . . . . . . . . . . . . . . . . . . . . . Shielding Activations . | . . . . . . . . . . . . . . . . . . . . . . . . . . . Robots Disrupted . | . . . . . . . . . . . . . . . . . . . . . . . . . . . Combat Hostiles . | . . . . . . . . . . . . . . . . . . . . . . . . . . . Robots Corrupted 15 | . . 2 . 2 . . . . 3 . . . 3 . . . . . . . . . . . . 5 Combat Hostiles 12 | . . 2 . 2 . . . . 3 . . . . . . . . . . . . . . . . 5 Parts Fried 39 | . 1 2 1 1 . . . . 9 . . . 12 . . . . . . . . . . . . 13 Impact Corruptions 25 | . . 3 . 1 . . . . 1 . . . 12 7 1 . . . . . . . . . . . Robots Melted . | . . . . . . . . . . . . . . . . . . . . . . . . . . . Combat Hostiles . | . . . . . . . . . . . . . . . . . . . . . . . . . . . Parts Melted 1 | . 1 . . . . . . . . . . . . . . . . . . . . . . . . . Heat Transferred 1447 | 777 420 . . . . . . . . . . . . . 100 . . . . . 100 . . . . 50 Parts Sabotaged 5 | . . . . . . . . . . . . . . . . . . . . . . . . . . 5 Parts Stolen . | . . . . . . . . . . . . . . . . . . . . . . . . . . . Parts Stripped . | . . . . . . . . . . . . . . . . . . . . . . . . . . . Power Chain Reactions 2 | . 1 . . 1 . . . . . . . . . . . . . . . . . . . . . . Alert | -11 -10 -10 -8 -8 -8 -7 -7 -7 -7 -7 -7 -6 -6 -6 -6 -6 -5 -5 -5 -5 -5 -5 -5 -5 -5 -4 ------- Run | Yrd Mat Sub Mat Gar Mat Fac Gar Fac Low Low Zio Pro Fac Low Low Dat Pro Fac Was Fac Ext Cet Arc Hub Gar Fac Maximum Alert Level 5 | . 1 . 2 5 3 . 4 2 . . . . . . . . . 2 1 1 3 2 1 . 5 5 Low Security (%) 44 | 100 72 . 51 . 41 100 15 . . . . . 100 . . . . . 94 75 17 . 6 100 11 . Level 1 17 | . 27 . 17 8 24 . 6 . . . . . . . . . . 16 5 24 51 40 93 . 13 . Level 2 17 | . . . 30 17 22 . 46 100 . . . . . . . . . 83 . . 18 59 . . 6 . Level 3 10 | . . . . 34 11 . 23 . . . . . . . . . . . . . 11 . . . 12 37 Level 4 8 | . . . . 35 . . 7 . . . . . . . . . . . . . . . . . 39 35 Level 5 1 | . . . . 4 . . . . . . . . . . . . . . . . . . . . 15 2 High Security 1 | . . . . . . . . . . . . . . . . . . . . . . . . . . 23 Max Security . | . . . . . . . . . . . . . . . . . . . . . . . . . . . Peak Influence 2471 | 5 280 . 602 1703 830 60 1158 607 . . . . 183 . . . . 456 211 390 815 509 344 92 1661 2471 Initial 871 | . . . . 281 830 55 . 607 . . . . . . . . . 450 135 . 177 375 148 80 . 871 Average 432 | 1 96 . 261 1036 330 30 621 492 . . . . 62 . . . . 427 110 77 352 417 277 34 985 1410 Influence Increases 14364 | 30 635 . 1500 1462 377 15 1158 94 200 30 25 69 702 338 459 . 30 468 126 448 1463 359 262 117 1701 2296 Destroy 0b10 Robot/C 6340 | . 340 . 840 660 220 . 520 60 160 20 20 60 420 300 200 . 20 . . 180 540 160 80 . 560 980 Destroy 0b10 Robot/NC 430 | 30 40 . 80 15 50 . 30 5 5 . . . 55 . . . 10 . . 10 35 10 15 10 . 30 Destroy Leader 874 | . 78 . 194 20 52 . 50 10 20 10 . . 90 20 20 . . . . 20 72 . . 2 50 166 Allied During Kill 2565 | . . . . . . . . . . . 5 9 5 3 14 . . . . 210 647 170 95 12 610 785 Successful Hack 262 | . 20 . 53 12 6 . . . . . . . 55 . . . . 12 . 4 10 9 . 71 10 . Select Force Hacks 90 | . 60 . 30 . . . . . . . . . . . . . . . . . . . . . . . Disable Machine 450 | . 30 . 30 30 15 15 90 . . . . . 30 . . . . . . . 45 . 60 . 45 60 Anti-Garrison Action 1200 | . . . . 600 . . 350 . . . . . . . . . . . . . . . . . 250 . Destroy Structure 998 | . 22 . 63 95 34 . 58 19 . . . . 47 . . . . 6 126 24 114 10 12 22 146 200 Advance Influence 450 | . . . . . . . . . . . . . . . . . . 450 . . . . . . . . Partial Spotted 15 | . . . 15 . . . . . . . . . . . . . . . . . . . . . . . Lose Combat Pursuer 690 | . 45 . 195 30 . . 60 . 15 . . . . 15 225 . . . . . . . . . 30 75 Influence Decreases 11903 | 30 447 188 1067 192 1957 138 . 831 621 30 16 78 544 440 414 101 30 80 514 86 1155 657 404 347 40 1496 Entered New Map 3969 | . . 91 . 152 873 68 . 551 157 . . 9 . 59 11 101 . . 253 . 185 295 224 150 . 790 Time Decay 5625 | 30 437 87 687 . 614 70 . 130 464 30 16 29 401 381 365 . 30 80 261 66 510 262 160 99 . 416 Lost Part 330 | . 10 10 70 40 20 . . . . . . . . . . . . . . . . . . . . 180 Lost Ally 563 | . . . 10 . . . . . . . . 40 20 . 38 . . . . 20 160 100 20 5 40 110 Purge Threat 1416 | . . . 300 . 450 . . 150 . . . . 123 . . . . . . . 300 . . 93 . . Squads Dispatched 39 | . 3 . 8 . 1 . . . . . . . 7 . . . . . . 1 2 . . . . 17 Investigation 7 | . 3 . 3 . . . . . . . . . . . . . . . . . . . . . . 1 Extermination 7 | . . . . . . . . . . . . . 4 . . . . . . 1 . . . . . 2 Reinforcement 10 | . . . 1 . . . . . . . . . 3 . . . . . . . 2 . . . . 4 Assault 11 | . . . . . 1 . . . . . . . . . . . . . . . . . . . . 10 Garrison 4 | . . . 4 . . . . . . . . . . . . . . . . . . . . . . . Intercept . | . . . . . . . . . . . . . . . . . . . . . . . . . . . Searches Triggered . | . . . . . . . . . . . . . . . . . . . . . . . . . . . Construction Impeded 5 | . . . . . . . . . . . . . 1 . . . . . . . 2 . . . . 2 Haulers Reinforced . | . . . . . . . . . . . . . . . . . . . . . . . . . . . Active Scanning Responses . | . . . . . . . . . . . . . . . . . . . . . . . . . . . Cargo Convoy Interrupts 1 | . . . . . . . . . . . . . . . . . . . . . . . . . . 1 Stealth | -11 -10 -10 -8 -8 -8 -7 -7 -7 -7 -7 -7 -6 -6 -6 -6 -6 -5 -5 -5 -5 -5 -5 -5 -5 -5 -4 --------- Run | Yrd Mat Sub Mat Gar Mat Fac Gar Fac Low Low Zio Pro Fac Low Low Dat Pro Fac Was Fac Ext Cet Arc Hub Gar Fac Distress Signals 14 | . . . 1 . 2 . . . . . . . 1 . . . 1 . . . . 2 1 2 . 4 Communications Jammed 1 | . . . . . . . . . . . . . . . . . 1 . . . . . . . . . Distress Signals . | . . . . . . . . . . . . . . . . . . . . . . . . . . . Times Spotted 406 | . 24 3 60 37 30 . 30 1 9 1 1 2 26 14 13 . 4 . 5 4 24 9 11 2 24 72 Peak Tracking Total 14 | . 3 3 6 7 4 . 5 3 7 1 1 2 5 7 4 . 2 . 3 4 5 5 2 2 5 14 Tactical Retreats 35 | . 3 . 11 2 . . 4 . 1 . . . . 1 10 . . . . . . . . . 1 2 Traps | -11 -10 -10 -8 -8 -8 -7 -7 -7 -7 -7 -7 -6 -6 -6 -6 -6 -5 -5 -5 -5 -5 -5 -5 -5 -5 -4 ------- Run | Yrd Mat Sub Mat Gar Mat Fac Gar Fac Low Low Zio Pro Fac Low Low Dat Pro Fac Was Fac Ext Cet Arc Hub Gar Fac Traps Triggered 35 | . 6 1 3 9 . . 5 1 . . . . 3 . . . . 1 . 1 1 . . . 3 1 Indirectly . | . . . . . . . . . . . . . . . . . . . . . . . . . . . Trap Hack Attempts . | . . . . . . . . . . . . . . . . . . . . . . . . . . . Triggered . | . . . . . . . . . . . . . . . . . . . . . . . . . . . Disarmed . | . . . . . . . . . . . . . . . . . . . . . . . . . . . Reprogrammed . | . . . . . . . . . . . . . . . . . . . . . . . . . . . Reused . | . . . . . . . . . . . . . . . . . . . . . . . . . . . Traps Extracted . | . . . . . . . . . . . . . . . . . . . . . . . . . . . Installed . | . . . . . . . . . . . . . . . . . . . . . . . . . . . Triggered . | . . . . . . . . . . . . . . . . . . . . . . . . . . . Most Traps Carried 1 | . . . . . . . . . 1 1 . . . . . . . . . . . . . . . . Machines | -11 -10 -10 -8 -8 -8 -7 -7 -7 -7 -7 -7 -6 -6 -6 -6 -6 -5 -5 -5 -5 -5 -5 -5 -5 -5 -4 ---------- Run | Yrd Mat Sub Mat Gar Mat Fac Gar Fac Low Low Zio Pro Fac Low Low Dat Pro Fac Was Fac Ext Cet Arc Hub Gar Fac Machines Disabled 52 | . 2 . 2 11 1 1 10 . . . 1 . 2 1 . . . . . . 4 . 4 . 9 4 Max in Single Turn 4 | . 1 . 1 2 1 1 1 . . . . . 1 1 . . . . . . 1 . 1 . 2 4 Garrison Relay 14 | . . . . 6 . . 4 . . . . . . . . . . . . . . . . . 4 . Phase Generator 2 | . . . . 1 . . . . . . . . . . . . . . . . . . . . 1 . Machines Repaired . | . . . . . . . . . . . . . . . . . . . . . . . . . . . Machines Dismantled . | . . . . . . . . . . . . . . . . . . . . . . . . . . . Machines Sabotaged . | . . . . . . . . . . . . . . . . . . . . . . . . . . . Overloaded Fab Kills . | . . . . . . . . . . . . . . . . . . . . . . . . . . . Hacking | -11 -10 -10 -8 -8 -8 -7 -7 -7 -7 -7 -7 -6 -6 -6 -6 -6 -5 -5 -5 -5 -5 -5 -5 -5 -5 -4 --------- Run | Yrd Mat Sub Mat Gar Mat Fac Gar Fac Low Low Zio Pro Fac Low Low Dat Pro Fac Was Fac Ext Cet Arc Hub Gar Fac Machines Accessed 78 | . 10 . 15 2 6 1 1 3 . . 1 . 11 . . 3 . 3 . 2 8 1 . 7 3 1 Terminals 56 | . 7 . 11 2 6 . 1 2 . . . . 7 . . . . 1 . 2 7 1 . 6 3 . Fabricators 1 | . . . . . . . . . . . . . . . . . . . . . . . . . . 1 Repair Stations 2 | . 1 . 1 . . . . . . . . . . . . . . . . . . . . . . . Recycling Units 7 | . 2 . 1 . . . . . . . . . 3 . . . . . . . 1 . . . . . Scanalyzers 4 | . . . 1 . . . . 1 . . . . 1 . . . . 1 . . . . . . . . Garrison Access 4 | . . . 1 . . 1 . . . . . . . . . . . 1 . . . . . 1 . . Total Hacks 212 | . 33 . 39 4 24 2 2 6 . . 4 . 30 . . 20 . 8 . 6 15 1 . 13 3 2 Successful 127 | . 18 . 24 1 11 1 . 2 . . 4 . 18 . . 20 . 4 . 1 8 1 . 9 3 2 Failed 83 | . 15 . 15 3 13 1 2 3 . . . . 12 . . . . 3 . 5 7 . . 4 . . Catastrophic 15 | . 1 . 2 . 3 . 2 2 . . . . 2 . . . . 1 . 1 1 . . . . . Database Lockouts 2 | . . . . . . . . 1 . . . . . . . . . 1 . . . . . . . . Manual 115 | . 29 . 30 . 16 . . 3 . . . . 19 . . . . 2 . 3 7 1 . 5 . . Terminals 150 | . 25 . 32 4 24 . 2 4 . . . . 21 . . . . 2 . 6 14 1 . 12 3 . Fabricators 2 | . . . . . . . . . . . . . . . . . . . . . . . . . . 2 Repair Stations 5 | . 2 . 3 . . . . . . . . . . . . . . . . . . . . . . . Recycling Units 15 | . 6 . 1 . . . . . . . . . 7 . . . . . . . 1 . . . . . Scanalyzers 10 | . . . 2 . . . . 2 . . . . 2 . . . . 4 . . . . . . . . Garrison Access 6 | . . . 1 . . 2 . . . . . . . . . . . 2 . . . . . 1 . . Terminal Hacks 61 | . 3 . 7 1 8 . . 1 . . 4 . 3 . . 20 . . . . 5 1 . 5 3 . Record 2 | . . . . . . . . . . . . . . . . 2 . . . . . . . . . . Part Schematic 15 | . 1 . . . . . . . . . 4 . . . . 10 . . . . . . . . . . Robot Schematic 5 | . . . . . . . . . . . . . . . . 5 . . . . . . . . . . Robot Analysis 9 | . 2 . 5 . 1 . . . . . . . 1 . . . . . . . . . . . . . Prototype ID Bank 3 | . . . . . . . . . . . . . . . . 3 . . . . . . . . . . Open Door 1 | . . . . . . . . . . . . . . . . . . . . . . 1 . . . . Emergency Access Points 2 | . . . . . 1 . . . . . . . . . . . . . . . . . . . 1 . Terminal Index 1 | . . . . . . . . . . . . . 1 . . . . . . . . . . . . . Alert Level 5 | . . . . . 3 . . . . . . . . . . . . . . . 2 . . . . . Unreport Threat 12 | . . . 2 . 3 . . 1 . . . . 1 . . . . . . . 2 . . 3 . . Locate Traps 1 | . . . . . . . . . . . . . . . . . . . . . 1 . . . . . Registered Components 1 | . . . . . . . . . . . . . . . . . . . . . . . . 1 . . Zone Layout 1 | . . . . . . . . . . . . . . . . . . . . . . . . 1 . . Garrison Registry 1 | . . . . . . . . . . . . . . . . . . . . . . . . . 1 . Patrol Navigation 2 | . . . . 1 . . . . . . . . . . . . . . . . . . . . 1 . Fabricator Hacks 2 | . . . . . . . . . . . . . . . . . . . . . . . . . . 2 Network Status 1 | . . . . . . . . . . . . . . . . . . . . . . . . . . 1 Build 1 | . . . . . . . . . . . . . . . . . . . . . . . . . . 1 Repair Station Hacks 4 | . 2 . 2 . . . . . . . . . . . . . . . . . . . . . . . Scan Component 2 | . 1 . 1 . . . . . . . . . . . . . . . . . . . . . . . Repair 2 | . 1 . 1 . . . . . . . . . . . . . . . . . . . . . . . Recycling Unit Hacks 5 | . 1 . . . . . . . . . . . 4 . . . . . . . . . . . . . Process 1 | . . . . . . . . . . . . . 1 . . . . . . . . . . . . . Report Inventory 1 | . . . . . . . . . . . . . 1 . . . . . . . . . . . . . Retrieve Matter 1 | . . . . . . . . . . . . . 1 . . . . . . . . . . . . . Retrieve Components 2 | . 1 . . . . . . . . . . . 1 . . . . . . . . . . . . . Scanalyzer 6 | . . . 1 . . . . 1 . . . . 1 . . . . 3 . . . . . . . . Retrieve Study 6 | . . . 1 . . . . 1 . . . . 1 . . . . 3 . . . . . . . . Garrison Access Hacks 3 | . . . 1 . . 1 . . . . . . . . . . . . . . . . . 1 . . Unlock Access 3 | . . . 1 . . 1 . . . . . . . . . . . . . . . . . 1 . . Unauthorized Hacks 45 | . 11 . 13 . 3 . . . . . . . 10 . . . . 1 . 1 3 . . 3 . . Terminals 40 | . 8 . 12 . 3 . . . . . . . 9 . . . . 1 . 1 3 . . 3 . . Track 1 | . . . . . . . . . . . . . 1 . . . . . . . . . . . . . Assimilate 4 | . . . 4 . . . . . . . . . . . . . . . . . . . . . . . Botnet 15 | . 2 . 2 . 1 . . . . . . . 2 . . . . 1 . 1 3 . . 3 . . Operators 3 | . 1 . 1 . 1 . . . . . . . . . . . . . . . . . . . . . Skim 17 | . 5 . 5 . 1 . . . . . . . 6 . . . . . . . . . . . . . Fabricators . | . . . . . . . . . . . . . . . . . . . . . . . . . . . Repair Stations . | . . . . . . . . . . . . . . . . . . . . . . . . . . . Recycling Units 5 | . 3 . 1 . . . . . . . . . 1 . . . . . . . . . . . . . Recyclers 2 | . 1 . . . . . . . . . . . 1 . . . . . . . . . . . . . Tunnel 3 | . 2 . 1 . . . . . . . . . . . . . . . . . . . . . . . Scanalyzers . | . . . . . . . . . . . . . . . . . . . . . . . . . . . Garrison Access . | . . . . . . . . . . . . . . . . . . . . . . . . . . . Data Cores Recovered 1 | . . . . . . . . . . . . . . . . . . . . . 1 . . . . . Used . | . . . . . . . . . . . . . . . . . . . . . . . . . . . Hacking Detections 63 | . 8 . 13 2 6 . 1 2 . . . . 11 . . . . 2 . 2 8 . . 7 . 1 Full Trace Events 3 | . . . 1 1 . . 1 . . . . . . . . . . . . . . . . . . . Feedback Events . | . . . . . . . . . . . . . . . . . . . . . . . . . . . Feedback Blocked . | . . . . . . . . . . . . . . . . . . . . . . . . . . . Robot Schematics Acquired 8 | . . . . . . . . . . . 3 . . . . 5 . . . . . . . . . . Robots Built . | . . . . . . . . . . . . . . . . . . . . . . . . . . . Authchips . | . . . . . . . . . . . . . . . . . . . . . . . . . . . Time . | . . . . . . . . . . . . . . . . . . . . . . . . . . . Total Robot Build Rating . | . . . . . . . . . . . . . . . . . . . . . . . . . . . Part Schematics Acquired 30 | . 1 . . . . . . . . . 19 . . . . 10 . . . . . . . . . . Parts Built 1 | . . . . . . . . . . . . . . . . . . . . . . . . . . 1 Authchips . | . . . . . . . . . . . . . . . . . . . . . . . . . . . Time 128 | . . . . . . . . . . . . . . . . . . . . . . . . . . 128 Total Part Build Rating 8 | . . . . . . . . . . . . . . . . . . . . . . . . . . 8 Part Studies Acquired 6 | . . . 1 . . . . 1 . . . . 1 . . . . 3 . . . . . . . . Parts Repaired 2 | . 1 . 1 . . . . . . . . . . . . . . . . . . . . . . . Time 52 | . 26 . 26 . . . . . . . . . . . . . . . . . . . . . . . Parts Recycled . | . . . . . . . . . . . . . . . . . . . . . . . . . . . Recycled Matter 196 | . . . . . . . . . . . . . 196 . . . . . . . . . . . . . Retrieved Matter . | . . . . . . . . . . . . . . . . . . . . . . . . . . . Retrieved Components 6 | . 3 . . . . . . . . . . . 3 . . . . . . . . . . . . . Parts Scanalyzed . | . . . . . . . . . . . . . . . . . . . . . . . . . . . Part Schematics Acquired . | . . . . . . . . . . . . . . . . . . . . . . . . . . . Parts Damaged . | . . . . . . . . . . . . . . . . . . . . . . . . . . . Bothacking | -11 -10 -10 -8 -8 -8 -7 -7 -7 -7 -7 -7 -6 -6 -6 -6 -6 -5 -5 -5 -5 -5 -5 -5 -5 -5 -4 ------------ Run | Yrd Mat Sub Mat Gar Mat Fac Gar Fac Low Low Zio Pro Fac Low Low Dat Pro Fac Was Fac Ext Cet Arc Hub Gar Fac Used RIF Installer . | . . . . . . . . . . . . . . . . . . . . . . . . . . . Robots Hacked . | . . . . . . . . . . . . . . . . . . . . . . . . . . . Non-combat . | . . . . . . . . . . . . . . . . . . . . . . . . . . . Combat . | . . . . . . . . . . . . . . . . . . . . . . . . . . . Robot Hacks Applied . | . . . . . . . . . . . . . . . . . . . . . . . . . . . Relay Couplers Released 60 | . . . . 21 . . 19 . . . . . . . . . . . . . . . . . 19 1 Machine Destruction 60 | . . . . 21 . . 19 . . . . . . . . . . . . . . . . . 19 1 Fabnet Peak Effective % . | . . . . . . . . . . . . . . . . . . . . . . . . . . . Robots Rewired 6 | . . . . . . . . . . . . . . 2 . . . . . . 4 . . . . . Allies Hacked . | . . . . . . . . . . . . . . . . . . . . . . . . . . . Hacks Repelled . | . . . . . . . . . . . . . . . . . . . . . . . . . . . Allies | -11 -10 -10 -8 -8 -8 -7 -7 -7 -7 -7 -7 -6 -6 -6 -6 -6 -5 -5 -5 -5 -5 -5 -5 -5 -5 -4 -------- Run | Yrd Mat Sub Mat Gar Mat Fac Gar Fac Low Low Zio Pro Fac Low Low Dat Pro Fac Was Fac Ext Cet Arc Hub Gar Fac Total Allies 42 | . . . 1 . . . . . . . 3 . . 2 . . . . 19 . 12 5 . . . . Largest Group 22 | . . . 1 . . . . . . . 3 3 1 2 2 . . . 19 19 19 22 18 15 14 8 Highest-Rated Group 1171 | . . . 10 . . . . . . . 87 87 31 58 58 . . . 684 684 769 1171 1032 825 786 492 Highest-Rated Ally 159 | . . . 10 . . . . . . . 31 31 31 29 29 . . . 50 50 159 159 143 96 96 96 Initial Warlord ECA Mod 24 | . . . . . 12 11 11 20 20 20 20 19 19 19 19 19 18 18 18 18 18 18 18 18 18 24 Total Orders 14 | . . . . . . . . . . . . . . . 3 . . . . . . 9 . . . 2 STAY 8 | . . . . . . . . . . . . . . . 2 . . . . . . 5 . . . 1 FOLLOW 6 | . . . . . . . . . . . . . . . 1 . . . . . . 4 . . . 1 Ally Attacks 557 | . . . . . . . . . . . 4 9 5 10 3 . . . . 28 188 52 30 5 82 141 Total Damage 13929 | . . . . . . . . . . . 82 108 43 132 18 . . . . 604 3877 1140 802 199 2643 4281 Kills 100 | . . . . . . . . . . . 1 2 1 1 . . . . . 7 29 6 3 1 25 24 Allies Corrupted 2 | . . . . . . . . . . . . . . . . . . . . 1 . . . . 1 . Allies Melted 2 | . . . . . . . . . . . . . . . . . . . . . 1 . . . . 1 Intel | -11 -10 -10 -8 -8 -8 -7 -7 -7 -7 -7 -7 -6 -6 -6 -6 -6 -5 -5 -5 -5 -5 -5 -5 -5 -5 -4 ------- Run | Yrd Mat Sub Mat Gar Mat Fac Gar Fac Low Low Zio Pro Fac Low Low Dat Pro Fac Was Fac Ext Cet Arc Hub Gar Fac Active Infowar (turns) 23614 | 46 1279 73 2435 140 1318 166 1567 265 1182 1244 1255 1127 2168 1485 2063 97 1115 167 575 400 1384 560 320 271 . 912 Sensors 15246 | . . . . . . . . . 1087 1244 1245 1127 1642 1153 2063 97 999 167 575 400 1384 560 320 271 . 912 Terrain 1068 | . . 73 255 . . . . . . . 1 . 314 332 . . 93 . . . . . . . . . Traps 2 | . . . . . . . . . 2 . . . . . . . . . . . . . . . . . Seismic 6181 | 46 1279 . 1293 140 1318 166 1567 265 96 2 9 . . . . . . . . . . . . . . . Machine Analysis 2037 | . . . 2037 . . . . . . . . . . . . . . . . . . . . . . . Jamming 235 | . . . . . . . . . . . . . 212 . . . 23 . . . . . . . . . Robot Analysis Total 9 | . 2 . 5 . 1 . . . . . . . 1 . . . . . . . . . . . . . Derelict Logs Recovered 14 | . . . . . . . . . 2 3 1 3 . 2 1 . 2 . . . . . . . . . Drone Launches . | . . . . . . . . . . . . . . . . . . . . . . . . . . . Drone Recoveries . | . . . . . . . . . . . . . . . . . . . . . . . . . . . Exploration | -11 -10 -10 -8 -8 -8 -7 -7 -7 -7 -7 -7 -6 -6 -6 -6 -6 -5 -5 -5 -5 -5 -5 -5 -5 -5 -4 ------------- Run | Yrd Mat Sub Mat Gar Mat Fac Gar Fac Low Low Zio Pro Fac Low Low Dat Pro Fac Was Fac Ext Cet Arc Hub Gar Fac Turns Passed 29641 | 243 1965 282 2843 1806 2021 167 1621 265 1216 1244 1275 1131 2741 1673 2077 97 1132 167 575 400 1390 562 320 306 801 1321 Spaces Moved 16260 | 102 851 146 1173 813 708 99 679 206 893 932 916 717 1530 1012 1369 75 862 123 453 298 792 245 114 219 393 540 Core 7 | 4 1 . . . . . . . . . . . . . . . . . . . . . . . . 2 Treads 3719 | 98 850 146 1173 382 434 99 53 . . . . . . . . . . . . . 121 4 89 . 112 158 Legs . | . . . . . . . . . . . . . . . . . . . . . . . . . . . Wheels 12534 | . . . . 431 274 . 626 206 893 932 916 717 1530 1012 1369 75 862 123 453 298 671 241 25 219 281 380 Hover . | . . . . . . . . . . . . . . . . . . . . . . . . . . . Flight . | . . . . . . . . . . . . . . . . . . . . . . . . . . . Fastest Speed 50 | 50 160 160 160 115 115 160 115 115 115 130 115 145 115 115 115 130 115 120 105 105 105 120 120 120 120 120 Average Speed 139 | 155 160 160 171 164 173 160 150 115 119 130 135 145 123 116 126 130 122 123 106 118 138 121 213 120 154 159 Slowest Speed 1400 | 160 500 160 242 560 240 160 240 130 130 130 145 145 130 130 130 130 130 130 120 120 240 240 240 120 240 1400 Overloaded Moves . | . . . . . . . . . . . . . . . . . . . . . . . . . . . Propulsion Burnouts . | . . . . . . . . . . . . . . . . . . . . . . . . . . . Robots Hopped . | . . . . . . . . . . . . . . . . . . . . . . . . . . . Potential Cave-ins 6 | . . . 4 . . . . . . . . . 2 . . . . . . . . . . . . . Cave-ins Triggered . | . . . . . . . . . . . . . . . . . . . . . . . . . . . Exploration Rate (%) 60 | 5 98 8 88 90 35 3 63 8 93 98 82 92 42 98 98 68 93 5 95 9 84 68 73 33 75 17 Regions Visited 26 Branch Regions 13 Pre-discovered Areas 14 | . 2 . 4 . . . . . 1 1 2 . 3 . . 1 . . . . . . . . . . Known Exits Taken 18 | . . 1 1 . . 1 . 1 1 1 1 1 1 1 1 1 1 . . 1 1 1 1 1 . . Unknown Exits Taken 3 | 1 1 . . . 1 . . . . . . . . . . . . . . . . . . . . . Scrap Searched 26 | . . . . . . . . . 7 3 3 2 . 4 6 . 1 . . . . . . . . . Spaces Dug 188 | . 1 . 34 2 6 . 4 2 7 3 . . 29 12 52 . 5 3 . 1 13 . . 3 6 5 Terrain Destroyed 1089 | . 30 . 70 158 46 . 31 17 8 5 . . 54 96 172 . 13 3 154 14 41 5 6 3 93 70 Melee 61 | . 1 . 8 2 6 . 3 2 5 . . . 12 . 2 . . . . . 13 . . 3 3 1 Projectile 209 | . . . 32 . . . 4 . 3 5 . . 34 17 39 . 8 3 . 4 3 5 6 . 17 29 AOE 818 | . 29 . 30 156 40 . 24 15 . . . . 8 79 131 . 5 . 154 10 25 . . . 73 39 Terrain Rammed . | . . . . . . . . . . . . . . . . . . . . . . . . . . . Walls Destroyed . | . . . . . . . . . . . . . . . . . . . . . . . . . . . Machines Disabled . | . . . . . . . . . . . . . . . . . . . . . . . . . . . Actions | -11 -10 -10 -8 -8 -8 -7 -7 -7 -7 -7 -7 -6 -6 -6 -6 -6 -5 -5 -5 -5 -5 -5 -5 -5 -5 -4 --------- Run | Yrd Mat Sub Mat Gar Mat Fac Gar Fac Low Low Zio Pro Fac Low Low Dat Pro Fac Was Fac Ext Cet Arc Hub Gar Fac Total 21478 | 146 1349 172 1696 1067 1350 106 1081 224 1009 957 950 801 2197 1449 1645 74 913 135 516 337 1032 475 162 249 505 881 Wait 3323 | 10 393 . 242 41 496 . 201 1 76 13 2 74 442 356 185 . 25 6 25 25 162 191 26 22 56 253 Move 16236 | 101 850 145 1173 812 707 99 677 205 892 931 915 716 1529 1011 1368 74 861 123 452 297 791 244 113 218 392 540 Hop . | . . . . . . . . . . . . . . . . . . . . . . . . . . . Pick Up 146 | 3 20 2 31 8 7 3 6 2 4 3 8 1 17 1 5 . . 1 2 2 5 6 2 . . 7 Fast Attach 94 | 8 6 . 9 4 13 . 4 4 2 . 3 2 6 4 4 . 1 1 1 1 7 4 2 . 2 6 Attach 63 | . 1 2 9 4 8 2 5 2 2 . 7 . 5 . 3 . . 1 . . . 3 1 . . 8 Detach 9 | . . . . . 2 . 2 . . . 5 . . . . . . . . . . . . . . . Swap 269 | 2 13 4 28 26 15 . 27 2 7 2 4 . 65 19 11 . 10 . 2 6 5 4 1 3 2 11 Drop 196 | 2 11 4 26 19 21 1 16 3 6 3 5 2 20 5 10 . 1 . 4 2 12 9 5 . 2 7 Fire 713 | 20 51 1 74 103 47 . 58 2 8 5 . 6 73 28 56 . 15 3 30 4 20 14 12 1 34 48 Melee 298 | . 4 14 104 19 34 1 52 3 12 . 1 . 23 2 3 . . . . . 14 . . 5 6 1 Ram . | . . . . . . . . . . . . . . . . . . . . . . . . . . . Kick . | . . . . . . . . . . . . . . . . . . . . . . . . . . . Crush 2 | . . . . . . . 1 . . . . . 1 . . . . . . . . . . . . . Escape Stasis 98 | . . . . 31 . . 32 . . . . . 16 . . . . . . . 8 . . . 11 . Rewire 31 | . . . . . . . . . . . . . . 23 . . . . . . 8 . . . . . Trap . | . . . . . . . . . . . . . . . . . . . . . . . . . . . Miscellaneous . | . . . . . . . . . . . . . . . . . . . . . . . . . . . Route ------- -11/Scrapyard -10/Materials (discovered 5 exits: [*Mat x3] / [*Min] / *Sub) -10/Subcaves (discovered 3 exits: *Mat x2 / Rec) -8/Materials (discovered 5 exits: *Fac x2 / *Sto x2 / Gar) -8/Garrison (discovered 3 exits: *Mat x3) -8/Materials (discovered 2 exits: *Fac / Sto) -7/Factory (discovered 3 exits: Low x2 / Gar) -7/Garrison (discovered 3 exits: *Fac x3) -7/Factory -7/Lower Caves -7/Lower Caves (discovered 2 exits: *Fac / *Zio) -7/Zion -6/Proximity Caves -6/Factory (discovered 3 exits: *Fac x2 / *Low) -6/Lower Caves -6/Lower Caves (discovered 2 exits: *Fac / *Dat) -6/Data Miner -5/Proximity Caves -5/Factory (discovered 2 exits: Ext x2) -5/Waste -5/Factory -5/Extension (discovered 3 exits: *Fac x2 / *Cet) -5/Cetus (discovered 2 exits: *Fac / *Arc) -5/Archives (discovered 2 exits: *Fac / *Hub) -5/Hub_04(d) (discovered 3 exits: *Fac x2 / Gar) -5/Garrison (discovered 3 exits: *Fac x3) -4/Factory (discovered 1 exit: *Res) History --------- Turn | Location | Event 10 | -11/Scrapyard | Discovered new exit (range 16) 244 | -11/Scrapyard | Entered Materials 310 | -10/Materials | Build established: Mutant 442 | -10/Materials | Discovered new exit (range 15) 909 | -10/Materials | Discovered new exit (range 16) 1013 | -10/Materials | Discovered new exit (range 5) 1305 | -10/Materials | Learned 4 Subcaves zone layouts 1372 | -10/Materials | Learned 2 Mines zone layouts 1392 | -10/Materials | Repaired Seismic Detector 1428 | -10/Materials | Learned location of 2 exits from Subcaves 1512 | -10/Materials | Learned Storage trap positions 1556 | -10/Materials | Learned Storage trap positions 1608 | -10/Materials | Discovered new exit (range 15) 1674 | -10/Materials | Learned 4 Recycling zone layouts 2111 | -10/Materials | Discovered new exit (range 3) 2209 | -10/Materials | Entered Subcaves 2210 | -10/Subcaves | Approached by a straggling Scientist 2210 | -10/Subcaves | Identified exit to Recycling 2211 | -10/Subcaves | Identified exit to Materials 2276 | -10/Subcaves | Visited 4L-MR0's lab 2295 | -10/Subcaves | Core integrity fell below 50% 2320 | -10/Subcaves | Found Prototype Special Melee Weapon 2491 | -10/Subcaves | Entered Materials 2491 | -8/Materials | Evolved 4 slots: Propulsion x3, Utility x1 2492 | -8/Materials | Identified exit to Storage 3382 | -8/Materials | Repaired Seismic Detector 3512 | -8/Materials | Discovered new exit (range 16) 3688 | -8/Materials | Build established: Scavenger-Mutant 3930 | -8/Materials | Garrison activated, responded to threat 4586 | -8/Materials | Discovered exit to Storage (range 11) 4849 | -8/Materials | Learned location of 1 exit from Storage 4985 | -8/Materials | Learned Storage security intel 5008 | -8/Materials | Discovered new exit (range 16) 5037 | -8/Materials | Learned Storage stockpile data 5077 | -8/Materials | Learned location of Extension (-5) 5146 | -8/Materials | Learned location of Storage (-8) 5192 | -8/Materials | Garrison activated, responded to threat 5252 | -8/Materials | Learned 2 Lower Caves zone layouts 5334 | -8/Materials | Identified exit to Garrison 5334 | -8/Materials | Entered Garrison 5355 | -8/Garrison | Phase Generator disabled 5478 | -8/Garrison | Triggered checkpoint 5515 | -8/Garrison | Garrison Relay disabled 5606 | -8/Garrison | Triggered checkpoint 5619 | -8/Garrison | Triggered checkpoint 5643 | -8/Garrison | Triggered checkpoint 5656 | -8/Garrison | Triggered checkpoint 5667 | -8/Garrison | Core integrity fell below 50% 5896 | -8/Garrison | Triggered checkpoint 6034 | -8/Garrison | Spotted B-75 Beast 6082 | -8/Garrison | Garrison Relay disabled 6133 | -8/Garrison | Discovered new exit (range 11) 6360 | -8/Garrison | Discovered new exit (range 8) 6460 | -8/Garrison | Triggered checkpoint 6471 | -8/Garrison | Garrison Relay disabled 6504 | -8/Garrison | Triggered checkpoint 6653 | -8/Garrison | Lost 4 parts (1p2n1u) 6706 | -8/Garrison | Garrison Relay disabled 6948 | -8/Garrison | Triggered checkpoint 6957 | -8/Garrison | Discovered new exit (range 13) 7064 | -8/Garrison | Garrison Relay disabled 7140 | -8/Garrison | Entered Materials 7540 | -8/Materials | First assault squad dispatched 8025 | -8/Materials | Core integrity fell below 20% 9142 | -8/Materials | Discovered new exit (range 4) 9161 | -8/Materials | Entered Factory 9161 | -7/Factory | Evolved 2 slots: Propulsion x1, Utility x1 9162 | -7/Factory | Identified exit to Lower Caves 9328 | -7/Factory | Identified exit to Garrison 9328 | -7/Factory | Entered Garrison 9358 | -7/Garrison | Triggered checkpoint 9574 | -7/Garrison | Triggered checkpoint 9670 | -7/Garrison | Triggered checkpoint 9684 | -7/Garrison | Triggered checkpoint 9701 | -7/Garrison | Destroyed 7 combat bots 9781 | -7/Garrison | Discovered new exit (range 5) 9808 | -7/Garrison | Triggered checkpoint 9854 | -7/Garrison | Garrison Relay disabled 9991 | -7/Garrison | Heavy support dispatched to Factory 10159 | -7/Garrison | Heavy support dispatched to Factory 10292 | -7/Garrison | H-XX Assembler disabled 10393 | -7/Garrison | Discovered new exit (range 10) 10428 | -7/Garrison | Triggered checkpoint 10478 | -7/Garrison | Garrison Relay disabled 10628 | -7/Garrison | Discovered new exit (range 10) 10680 | -7/Garrison | Garrison Relay disabled 10752 | -7/Garrison | Attempted to access garrison exit controls, blocked by remote lockdown 10949 | -7/Garrison | Entered Factory 11047 | -7/Factory | Central database locked down 11159 | -7/Factory | Discovered exit to Lower Caves (range 5) 11214 | -7/Factory | Entered Lower Caves 11302 | -7/Lower Caves | Met a Warlord Commander 11303 | -7/Lower Caves | Learned location of Warlord (-4) 11304 | -7/Lower Caves | Warlord Commander delivered Encrypted Comm Array 11445 | -7/Lower Caves | Build established: Mutant 11552 | -7/Lower Caves | Learned Factory stockpile data 11639 | -7/Lower Caves | Destroyed 7 combat bots 11744 | -7/Lower Caves | Encountered a Warlord checkpoint 11777 | -7/Lower Caves | Identified exit to Lower Caves 12430 | -7/Lower Caves | Entered another Lower Caves area 12463 | -7/Lower Caves | Discovered new exit (range 16) 12697 | -7/Lower Caves | Learned location of Zion (-7) 12768 | -7/Lower Caves | Learned Factory stockpile data 13083 | -7/Lower Caves | Found DCF Scrap (13 items) 13542 | -7/Lower Caves | Learned location of 1 exit from Factory 13562 | -7/Lower Caves | Discovered new exit (range 15) 13672 | -7/Lower Caves | Identified exit to Zion 13674 | -7/Lower Caves | Entered Zion 13724 | -7/Zion | Acquired unknown access codes intercepted by a Zionite 13726 | -7/Zion | Discovered new exit (range 13) 13851 | -7/Zion | System corruption cleaned by Quarantine Array 14062 | -7/Zion | Gained Derelict followers 14297 | -7/Zion | Visited the Megawrench Repair Shop 14297 | -7/Zion | Megawrench repaired 9 parts 14322 | -7/Zion | Build established: Hauler-Mutant 14403 | -7/Zion | Learned location of Testing (-2) 14947 | -7/Zion | Identified exit to Proximity Caves 14949 | -7/Zion | Entered Proximity Caves 14949 | -6/Proximity Caves | Accompanied by 3 allies 14973 | -6/Proximity Caves | Attracted the attention of an 0b10 checkpoint 15520 | -6/Proximity Caves | Learned Factory security intel 15555 | -6/Proximity Caves | Identified exit to Factory 16080 | -6/Proximity Caves | Entered Factory 16080 | -6/Factory | Accompanied by 1 ally 16080 | -6/Factory | Evolved 2 slots: Weapon x2 16081 | -6/Factory | Identified exit to Lower Caves 17029 | -6/Factory | Discovered new exit (range 4) 17033 | -6/Factory | Identified exit to Factory 17226 | -6/Factory | Build established: Skirmisher 17486 | -6/Factory | Discovered exit to Factory (range 4) 18230 | -6/Factory | Learned location of Cetus (-5) 18297 | -6/Factory | Learned location of 2 exits from Lower Caves 18352 | -6/Factory | Learned location of Proximity Caves (-6) 18560 | -6/Factory | Learned Hub_04(d) interactive machine intel 18577 | -6/Factory | Learned 2 Hub_04(d) zone layouts 18604 | -6/Factory | Learned location of 1 exit from Extension 18639 | -6/Factory | Learned 2 Proximity Caves zone layouts 18645 | -6/Factory | Build established: Tank 18685 | -6/Factory | Learned location of 1 exit from Hub_04(d) 18821 | -6/Factory | Entered Lower Caves 18822 | -6/Lower Caves | Identified exit to Lower Caves 18977 | -6/Lower Caves | Learned Factory garrison access intel 19162 | -6/Lower Caves | Build established: Skirmisher 19592 | -6/Lower Caves | Encountered a Warlord checkpoint 19911 | -6/Lower Caves | Attracted the attention of an 0b10 outpost 19961 | -6/Lower Caves | Destroyed 7 combat bots 20299 | -6/Lower Caves | Learned 4 Factory zone layouts 20494 | -6/Lower Caves | Entered another Lower Caves area 20494 | -6/Lower Caves | Accompanied by 2 allies 21526 | -6/Lower Caves | Learned Factory terminal intel 21558 | -6/Lower Caves | Found DCF Scrap (13 items) 21879 | -6/Lower Caves | Build established: Derelict-Skirmisher 22439 | -6/Lower Caves | Discovered new exit (range 5) 22447 | -6/Lower Caves | Identified exit to Data Miner 22571 | -6/Lower Caves | Entered Data Miner 22571 | -6/Data Miner | Discovered new exit (range 6) 22596 | -6/Data Miner | Met Data Miner 22618 | -6/Data Miner | Learned location of Section 7 (-2) 22618 | -6/Data Miner | Acquired the access code to Warlord's prototype stash 22639 | -6/Data Miner | Received God Mode back door access code from Data Miner 22666 | -6/Data Miner | Identified exit to Proximity Caves 22668 | -6/Data Miner | Entered Proximity Caves 22946 | -5/Proximity Caves | Attracted the attention of an 0b10 checkpoint 22951 | -5/Proximity Caves | Spotter reported a threat 23020 | -5/Proximity Caves | Spotter reported a threat 23118 | -5/Proximity Caves | Spotter reported a threat 23327 | -5/Proximity Caves | Learned 4 Factory zone layouts 23800 | -5/Proximity Caves | Entered Factory 23800 | -5/Factory | Evolved 2 slots: Power x1, Utility x1 23801 | -5/Factory | Identified exit to Extension 23804 | -5/Factory | Loaded intel: 28 terminal locations 23805 | -5/Factory | Loaded intel: 4 garrison access locations 23822 | -5/Factory | Watched by a mysterious "MATRIX" hacker. 23873 | -5/Factory | Central database locked down 23967 | -5/Factory | Sucked down chute 23967 | -5/Factory | Entered Waste 23974 | -5/Waste | Spotted C-40 Crusher 23985 | -5/Waste | Destroyed C-40 Crusher 23989 | -5/Waste | Spotted C-40 Crusher 24010 | -5/Waste | Destroyed C-40 Crusher 24029 | -5/Waste | Spotted C-40 Crusher 24033 | -5/Waste | Destroyed C-40 Crusher 24095 | -5/Waste | Spotted C-40 Crusher 24148 | -5/Waste | Spotted C-40 Crusher 24175 | -5/Waste | Destroyed C-40 Crusher 24200 | -5/Waste | Destroyed C-40 Crusher 24227 | -5/Waste | Discovered new exit (range 13) 24268 | -5/Waste | Destroyed C-40 Crusher 24331 | -5/Waste | Build established: Scientist-Skirmisher 24356 | -5/Waste | Warlord forces began an assault 24541 | -5/Waste | Identified exit to Factory 24542 | -5/Waste | Entered Factory 24542 | -5/Factory | Accompanied by 19 allies 24870 | -5/Factory | Build established: Derelict-Skirmisher 24879 | -5/Factory | Discovered exit to Extension (range 12) 24942 | -5/Factory | Entered Extension 24942 | -5/Extension | Accompanied by 17 allies 24943 | -5/Extension | Identified exit to Factory 25034 | -5/Extension | Spotted B-75 Beast 25045 | -5/Extension | Allies destroyed B-75 Beast 25099 | -5/Extension | Lost 6 allies 25562 | -5/Extension | Rescued A7 25646 | -5/Extension | Rescued a captive Derelict 25646 | -5/Extension | Rescued a captive Derelict 25716 | -5/Extension | Rescued a captive Derelict 25716 | -5/Extension | Rescued a captive Derelict 25839 | -5/Extension | Rescued a captive Derelict 26093 | -5/Extension | Rescued a captive Derelict 26215 | -5/Extension | Rescued a captive Derelict 26262 | -5/Extension | Discovered exit to Factory (range 10) 26263 | -5/Extension | Discovered new exit (range 6) 26270 | -5/Extension | Identified exit to Cetus 26295 | -5/Extension | Build established: Scavenger-Skirmisher 26330 | -5/Extension | Disrupted transfer network 26332 | -5/Extension | Entered Cetus 26332 | -5/Cetus | Accompanied by 18 allies (A7) 26333 | -5/Cetus | Identified exit to Archives 26337 | -5/Cetus | Acquired a Cetus Manufacturing Module code from A7 26354 | -5/Cetus | Spotted Cetus Guard 26356 | -5/Cetus | Destroyed Cetus Guard 26362 | -5/Cetus | Allies destroyed Cetus Guard 26362 | -5/Cetus | Spotted Cetus Guard 26366 | -5/Cetus | Spotted Cetus Guard 26373 | -5/Cetus | Allies destroyed Cetus Guard 26374 | -5/Cetus | Allies destroyed Cetus Guard 26462 | -5/Cetus | Escorted A7 to Cetus Mainframe 26473 | -5/Cetus | Started Cetus Manufacturing Module 26498 | -5/Cetus | Manufactured an Enhanced Grunt 26523 | -5/Cetus | Manufactured an Enhanced Grunt 26548 | -5/Cetus | Manufactured an Enhanced Grunt 26573 | -5/Cetus | Manufactured an Enhanced Grunt 26598 | -5/Cetus | Manufactured an Enhanced Grunt 26736 | -5/Cetus | Spotted Cetus Guard 26737 | -5/Cetus | Spotted Cetus Guard 26740 | -5/Cetus | Spotted Cetus Guard 26740 | -5/Cetus | Destroyed Cetus Guard 26747 | -5/Cetus | Allies destroyed Cetus Guard 26755 | -5/Cetus | Spotted Cetus Guard 26755 | -5/Cetus | Allies destroyed Cetus Guard 26767 | -5/Cetus | Allies destroyed Cetus Guard 26770 | -5/Cetus | Discovered exit to Factory (range 16) 26780 | -5/Cetus | Met Revision 17 26797 | -5/Cetus | Lost 4 allies 26858 | -5/Cetus | Build established: Commander-Skirmisher 26894 | -5/Cetus | Entered Archives 26894 | -5/Archives | Accompanied by 18 allies (A7) 26899 | -5/Archives | Received a hacking code to weaken MAIN.C 27014 | -5/Archives | Discovered exit to Factory (range 16) 27041 | -5/Archives | Discovered new exit (range 15) 27192 | -5/Archives | Identified exit to Hub_04(d) 27214 | -5/Archives | Entered Hub_04(d) 27214 | -5/Hub_04(d) | Accompanied by 15 allies 27217 | -5/Hub_04(d) | Loaded intel: 15 interactive machine locations 27331 | -5/Hub_04(d) | Discovered exit to Factory (range 16) 27487 | -5/Hub_04(d) | Identified exit to Garrison 27520 | -5/Hub_04(d) | Entered Garrison 27520 | -5/Garrison | Accompanied by 14 allies 27574 | -5/Garrison | Triggered checkpoint 27613 | -5/Garrison | Garrison Relay disabled 27687 | -5/Garrison | Triggered checkpoint 27717 | -5/Garrison | P-70 Sage assimilated allied C3-N88(g) 27777 | -5/Garrison | Triggered checkpoint 27782 | -5/Garrison | Triggered checkpoint 27825 | -5/Garrison | Build established: Scavenger-Tank 27844 | -5/Garrison | Triggered checkpoint 27891 | -5/Garrison | Garrison Relay disabled 28017 | -5/Garrison | Phase Generator disabled 28028 | -5/Garrison | Discovered exit to Factory (range 12) 28039 | -5/Garrison | Discovered exit to Factory (range 60) 28039 | -5/Garrison | Discovered exit to Factory (range 13) 28039 | -5/Garrison | Discovered exit to Factory (range 35) 28108 | -5/Garrison | Triggered checkpoint 28321 | -5/Garrison | Entered Factory 28321 | -4/Factory | Accompanied by 8 allies 28321 | -4/Factory | Evolved 2 slots: Weapon x2 28694 | -4/Factory | Build established: Scavenger-Executioner 28698 | -4/Factory | Fabricated Gamma Bomb Array (x1) 29321 | -4/Factory | First assault squad dispatched 29325 | -4/Factory | High security lockdown imminent 29366 | -4/Factory | Cargo convoy interrupted 29405 | -4/Factory | High security lockdown engaged 29474 | -4/Factory | Discovered new exit (range 15) 29475 | -4/Factory | Lost 3 parts (3p) 29497 | -4/Factory | Identified exit to Research 29628 | -4/Factory | Destroyed 11 combat bots 29632 | -4/Factory | Core integrity fell below 50% 29639 | -4/Factory | Core integrity fell below 20% 29642 | -4/Factory | Destroyed by G-73 Enforcer with Phase Gun Last Messages --------------- 29621_ L-61 Swordsman destroyed. 29625_ Centrium Heavy Treads destroyed. 29627_ Slug penetrates Wall. 29629_ Critical hit (Burn: +50). 29631_ Slug penetrates Wall. 29633_ Adv. Cooling System destroyed. 29634_ Slug penetrates Wall. 29636_ Critical hit (Burn: +37). 29637_ Slug penetrates Wall. 29638_ Wall collapses. 29638_ R-10 Processor exits level. 29640_ C-45 Heavy ARC bursts open, deploying its payload. 29640_ G-73 Enforcer unfolds itself. 29640_ G-67 Veteran unfolds itself. 29640_ E-15 Imp unfolds itself. 29640_ Penetrated by Slug. 29641_ Adv. Signal Interpreter blown off. 29641_ Imp. Hacking Suite blown off. 29641_ E-15 Imp destroyed. Map ----- +----------------------------------------------------+ | ?????????????????????????????????????????????????? | | ?????????????????????????????????????????????????? | | ?????????????????????????????????????????????????? | | ?????????????????????????????????????????????????? | | ?????????????????????????????????????????????????? | | ?????????????????????????????????????????????????? | | ?????????????????????????????????????????????????? | | ?????????????????????????????????????????????????? | | ?????????????????????????????????????????????????? | | ?????????????????????????????????????????????????? | | ?????????????????????????????????????????????????? | | ?????????????????????????????????????????????????? | | ?????????????????????????????????????????????????? | | ?????????????????????????????????????????????????? | | ???????????????? ??????????????????????????????? | | ???????????? ? ??????????????????????????????? | | ?????????? ??????????????????????????????? | | ???????? [%% #?????????????????????????????? | | ??????? [= #?????????????????????????????? | | ??????? =%|h= ##############????????????????? | | ??????? %[ [! # #????????????????? | | ???????? *=! !% ; #????????????????? | | ?????????" % %] # #????????????????? | | ??????????" *==[%= # #????????????????? | | ???????????#%=%!*! # ! #????????????????? | | ???????????#!/=!= # %!@%* #????????????????? | | ???????????#[*%! # s /[%R![ #????????????????? | | ???######??# *%! #g =! ! #????????????????? | | ???? # = %g *=!! #????????????????? | | ???????? + /g ! #????????????????? | | ???????????# [ g #????????????????? | | ???????????# =[ gg #????????????????? | | ???????????# w=%=g ;*;;;;#####????????????????? | | ???????????# ! =!%=% #??????????????????? | | ???????????# %[ =[[ #??????????????????? | | ???????????# % %[= #??????????????????? | | ???????????# %%[!!g!![%! #??????????????????? | | ???????????# [==%* #??????????????????? | | ???????????# !%!=! #??????????????????? | | ???????????# ! = #??????????????????? | | ???????????# % #??????????????????? | | ???????????#### #"### #??????????????????? | | ??????????????#/###?### !=! ###########??????????? | | ?????????????? %??????" !%! " #??????????? | | ??????????????! ??????# !!= " #??????????? | | ?????????????? ??????+ + #??????????? | | ##########???? ??????# # #??????????? | | # #????????????# # #??????????? | | # """ ############?# #? #??????????? | | #= """ # #?# #? #??????????? | +----------------------------------------------------+ Best States ------------- Heat Dissipation 74 Energy Generation 43 Energy Capacity 590 Matter Stores 300 Matter Capacity 300 Sight Range 16 Robot Scan Range 18 Terrain Scan Range 16 Terrain Scan Density 10 Jamming Range 16 Corruption Block 8 Armor Coverage 600 Resistance: TH 10 Evasion (%) 40 Recoil Reduction 6 Salvage Targeting 3 Offensive Hacking 24 Defensive Hacking 10 Item Schematics ----------------- Hcp. Storage Unit | -10/Materials | Hacked Med. Treads | -7/Zion | Archive Hvy. Pick | -7/Zion | Archive Imp. Actuator Array | -7/Zion | Archive Imp. Carbon-fiber Leg | -7/Zion | Archive Coil Gun | -7/Zion | Archive Adv. Terrain Scan Processor | -7/Zion | Archive Hvy. Shock Bomb Launcher | -7/Zion | Archive Angular Momentum Engine | -7/Zion | Archive Armor Integrity Analyzer | -7/Zion | Archive Great Axe | -7/Zion | Archive Hvy. Flak Cannon | -7/Zion | Archive Gatling Laser | -7/Zion | Archive Imp. Target Analyzer | -7/Zion | Archive Gauss Cannon | -7/Zion | Archive Adv. System Shield | -7/Zion | Archive Riot Gun | -7/Zion | Free Flamer | -7/Zion | Free Slug Cannon | -7/Zion | Free Ripper | -7/Zion | Free Combat Drone Bay | -6/Data Miner | Free Lgt. Regenerative Plating | -6/Data Miner | Free Cld. Gravmag System | -6/Data Miner | Free Imp. Matter Compressor | -6/Data Miner | Free Hvy. Proton Missile Launcher | -6/Data Miner | Free Imp. Gyrokinetic Inverter | -6/Data Miner | Free Adv. Trap Scanner | -6/Data Miner | Free Imp. Force Booster | -6/Data Miner | Free Dispersion Rifle | -6/Data Miner | Free Hyp. Mass Driver | -6/Data Miner | Free Robot Schematics ------------------ Y-54 Guardian | -7/Zion | Archive D-53 Grenadier | -7/Zion | Archive H-77 Assassin | -7/Zion | Archive E-15 Imp | -6/Data Miner | Free A-15 Conveyor | -6/Data Miner | Free G-67 Veteran | -6/Data Miner | Free B-60 Warrior | -6/Data Miner | Free R-10 Processor | -6/Data Miner | Free Fabricated ------------ Gamma Bomb Array | x1 | -4/Factory | Preloaded Repaired ---------- Seismic Detector | 5% | -10/Materials Seismic Detector | 10% | -8/Materials Studied --------- EMP Blaster | -8/Materials | Hacked Mni. Grenade Launcher | -7/Factory | Hacked Gauss Rifle | -6/Factory | Hacked Arm. Huge Wheel | -5/Factory | Hacked Lrn. Missile Launcher | -5/Factory | Hacked Hvy. Machine Gun | -5/Factory | Hacked Alien Tech Used ----------------- None Achievements -------------- None Challenges ------------ None Game ------ Seed SiegeShrapnelRailcannon Manual? 0 Play Time 04:10:54 Cumulative 406.7 hours Start 2026.02.16 @ 20:49:00 End 2026.02.17 @ 01:38:54 Sessions 1 Manual Loads 0 Difficulty Rogue Special Mode None Game No. 326 Rogue 326 Adventurer 0 Explorer 0 Win Type - Total 2 Types 2/0/0/0/0/0/0/0/0/0 Lore% 64 Gallery% 69 Achievement% 55 Wizard Run 0 Options --------- Layout 1 ASCII 0 Keyboard 0 Movement Mouse Keybinds 0 Fullscreen 1 Font 32/SmallcapsGlow Map View 50x35 Zoom Use 0% Tactical HUD 1 Map Filters NONE Filters NONE Steam 1 RUN: 0198b5e8-9ee1-451f-abed-d7f2c69db246